Workbook

Sheet Default_Unlocatable_Points
A1: CNTY_ID | B1: CNTY_NM | C1: CITY_SECT_ID | D1: CITY_NM | E1: URB_AREA_CD | F1: URB_AREA_NM | G1: LAT_DEG_NO | H1: LAT_MIN | I1: LAT_SEC_NO | J1: LONGTD_DEG | K1: LONGTD_MIN | L1: LONGTD_SEC | M1: LAT_DD | N1: LONGTD_DD
A2: 01 | B2: Baker | C2: 13 | D2: Baker City | G2: 44 | H2: 46 | I2: 26.81 | J2: -117 | K2: 49 | L2: 49.538 | M2: =G2+(H2/60)+(I2/3600) -> 44.77411389 | N2: =J2-((K2/60)+(L2/3600)) -> -117.8304272
A3: 01 | B3: Baker | C3: 84 | D3: Haines | G3: 44 | H3: 54 | I3: 43.28 | J3: -117 | K3: 56 | L3: 22.13 | M3: 44.91202222 | N3: -117.9394806
A4: 01 | B4: Baker | C4: 85 | D4: Halfway | G4: 44 | H4: 52 | I4: 45.01 | J4: -117 | K4: 6 | L4: 31.42 | M4: 44.87916944 | N4: -117.1087278
A5: 01 | B5: Baker | C5: 96 | D5: Huntington | G5: 44 | H5: 21 | I5: 13.51 | J5: -117 | K5: 16 | L5: 2.52 | M5: 44.35375278 | N5: -117.2673667
A6: 01 | B6: Baker | C6: 175 | D6: Richland | G6: 44 | H6: 46 | I6: 3.62 | J6: -117 | K6: 10 | L6: 12.23 | M6: 44.76767222 | N6: -117.1700639
A7: 01 | B7: Baker | C7: 205 | D7: Sumpter | G7: 44 | H7: 44 | I7: 28.22 | J7: -118 | K7: 11 | L7: 48.52 | M7: 44.74117222 | N7: -118.1968111
A8: 01 | B8: Baker | C8: 220 | D8: Unity | G8: 44 | H8: 26 | I8: 46.73 | J8: -118 | K8: 11 | L8: 20.49 | M8: 44.44631389 | N8: -118.189025
A9: 01 | B9: Baker | E9: 7 | F9: BAKR CTY UA | G9: 44 | H9: 47 | I9: 59.39 | J9: -117 | K9: 51 | L9: 13.82 | M9: 44.79983056 | N9: -117.8538389
A10: 01 | B10: Baker | G10: 44 | H10: 43 | I10: 6.32 | J10: -117 | K10: 39 | L10: 44.94 | M10: 44.71842222 | N10: -117.6624833
A11: 02 | B11: Benton | C11: 1 | D11: Adair Village | G11: 44 | H11: 40 | I11: 29.35 | J11: -123 | K11: 13 | L11: 3.73 | M11: 44.67481944 | N11: -123.2177028
A12: 02 | B12: Benton | C12: 4 | D12: Albany | G12: 44 | H12: 39 | I12: 7.48 | J12: -123 | K12: 7 | L12: 16.93 | M12: 44.65207778 | N12: -123.1213694
A13: 02 | B13: Benton | C13: 42 | D13: Corvallis | G13: 44 | H13: 31 | I13: 31.75 | J13: -123 | K13: 16 | L13: 52.95 | M13: 44.52548611 | N13: -123.281375
A14: 02 | B14: Benton | C14: 142 | D14: Monroe | G14: 44 | H14: 19 | I14: 1.78 | J14: -123 | K14: 17 | L14: 56.67 | M14: 44.31716111 | N14: -123.299075
A15: 02 | B15: Benton | C15: 163 | D15: Philomath | G15: 44 | H15: 32 | I15: 16.15 | J15: -123 | K15: 21 | L15: 27.36 | M15: 44.53781944 | N15: -123.3576
A16: 02 | B16: Benton | E16: 1 | F16: ALBANY UA | G16: 44 | H16: 38 | I16: 59.4 | J16: -123 | K16: 8 | L16: 13.59 | M16: 44.64983333 | N16: -123.1371083
A17: 02 | B17: Benton | E17: 19 | F17: CORVALIS UA | G17: 44 | H17: 34 | I17: 43.41 | J17: -123 | K17: 18 | L17: 51.55 | M17: 44.578725 | N17: -123.3143194
A18: 02 | B18: Benton | G18: 44 | H18: 30 | I18: 3.02 | J18: -123 | K18: 26 | L18: 47.61 | M18: 44.50083889 | N18: -123.4465583
A19: 03 | B19: Clackamas | C19: 16 | D19: Barlow | G19: 45 | H19: 15 | I19: 8.13 | J19: -122 | K19: 43 | L19: 24.29 | M19: 45.25225833 | N19: -122.7234139
A20: 03 | B20: Clackamas | C20: 26 | D20: Canby | G20: 45 | H20: 16 | I20: 5.21 | J20: -122 | K20: 41 | L20: 12.95 | M20: 45.26811389 | N20: -122.6869306
A21: 03 | B21: Clackamas | C21: 251 | D21: Damascus | G21: 45 | H21: 26 | I21: 33.64 | J21: -122 | K21: 26 | L21: 50.51 | M21: 45.44267778 | N21: -122.4473639
A22: 03 | B22: Clackamas | C22: 63 | D22: Estacada | G22: 45 | H22: 17 | I22: 49.45 | J22: -122 | K22: 19 | L22: 51.2 | M22: 45.29706944 | N22: -122.3308889
A23: 03 | B23: Clackamas | C23: 75 | D23: Gladstone | G23: 45 | H23: 23 | I23: 7.87 | J23: -122 | K23: 35 | L23: 46.67 | M23: 45.38551944 | N23: -122.5962972
A24: 03 | B24: Clackamas | C24: 87 | D24: Happy Valley | G24: 45 | H24: 26 | I24: 57.25 | J24: -122 | K24: 31 | L24: 5.31 | M24: 45.44923611 | N24: -122.5181417
A25: 03 | B25: Clackamas | C25: 106 | D25: Johnson City | G25: 45 | H25: 24 | I25: 18.92 | J25: -122 | K25: 34 | L25: 44.19 | M25: 45.40525556 | N25: -122.5789417
A26: 03 | B26: Clackamas | C26: 115 | D26: Lake Oswego | G26: 45 | H26: 24 | I26: 28.66 | J26: -122 | K26: 41 | L26: 48.75 | M26: 45.40796111 | N26: -122.696875
A27: 03 | B27: Clackamas | C27: 138 | D27: Milwaukie | G27: 45 | H27: 26 | I27: 38.77 | J27: -122 | K27: 37 | L27: 14.45 | M27: 45.44410278 | N27: -122.6206806
A28: 03 | B28: Clackamas | C28: 140 | D28: Molalla | G28: 45 | H28: 9 | I28: 7.63 | J28: -122 | K28: 35 | L28: 28.75 | M28: 45.15211944 | N28: -122.5913194
A29: 03 | B29: Clackamas | C29: 160 | D29: Oregon City | G29: 45 | H29: 20 | I29: 6.15 | J29: -122 | K29: 35 | L29: 39.86 | M29: 45.33504167 | N29: -122.5944056
A30: 03 | B30: Clackamas | C30: 245 | D30: Portland SE | G30: 45 | H30: 27 | I30: 35.18 | J30: -122 | K30: 32 | L30: 10.17 | M30: 45.45977222 | N30: -122.5361583
A31: 03 | B31: Clackamas | C31: 247 | D31: Portland SW | G31: 45 | H31: 25 | I31: 57.42 | J31: -122 | K31: 41 | L31: 54.95 | M31: 45.43261667 | N31: -122.6985972
A32: 03 | B32: Clackamas | C32: 177 | D32: Rivergrove | G32: 45 | H32: 23 | I32: 6.95 | J32: -122 | K32: 44 | L32: 9.88 | M32: 45.38526389 | N32: -122.7360778
A33: 03 | B33: Clackamas | C33: 185 | D33: Sandy | G33: 45 | H33: 24 | I33: 19.27 | J33: -122 | K33: 16 | L33: 41.34 | M33: 45.40535278 | N33: -122.27815
A34: 03 | B34: Clackamas | C34: 215 | D34: Tualatin | G34: 45 | H34: 22 | I34: 40.93 | J34: -122 | K34: 43 | L34: 55.23 | M34: 45.37803611 | N34: -122.7320083
A35: 03 | B35: Clackamas | C35: 230 | D35: West Linn | G35: 45 | H35: 21 | I35: 14.46 | J35: -122 | K35: 38 | L35: 26 | M35: 45.35401667 | N35: -122.6405556
A36: 03 | B36: Clackamas | C36: 234 | D36: Wilsonville | G36: 45 | H36: 18 | I36: 22.3 | J36: -122 | K36: 46 | L36: 22 | M36: 45.30619444 | N36: -122.7727778
A37: 03 | B37: Clackamas | E37: 13 | F37: CANBY UA | G37: 45 | H37: 16 | I37: 36.81 | J37: -122 | K37: 39 | L37: 53.38 | M37: 45.27689167 | N37: -122.6648278
A38: 03 | B38: Clackamas | E38: 46 | F38: MOLALLA UA | G38: 45 | H38: 8 | I38: 41.61 | J38: -122 | K38: 35 | L38: 22.92 | M38: 45.14489167 | N38: -122.5897
A39: 03 | B39: Clackamas | E39: 57 | F39: PORTLAND UA | G39: 45 | H39: 22 | I39: 34.06 | J39: -122 | K39: 32 | L39: 3.53 | M39: 45.37612778 | N39: -122.5343139
A40: 03 | B40: Clackamas | E40: 68 | F40: SANDY UA | G40: 45 | H40: 24 | I40: 19.52 | J40: -122 | K40: 18 | L40: 7.9 | M40: 45.40542222 | N40: -122.3021944
A41: 03 | B41: Clackamas | G41: 45 | H41: 10 | I41: 20.21 | J41: -122 | K41: 15 | L41: 24.5 | M41: 45.17228056 | N41: -122.2568056
A42: 04 | B42: Clatsop | C42: 9 | D42: Astoria | G42: 46 | H42: 11 | I42: 0.77 | J42: -123 | K42: 48 | L42: 48.5 | M42: 46.18354722 | N42: -123.8134722
A43: 04 | B43: Clatsop | C43: 27 | D43: Cannon Beach | G43: 45 | H43: 53 | I43: 37.73 | J43: -123 | K43: 57 | L43: 7.01 | M43: 45.89381389 | N43: -123.9519472
A44: 04 | B44: Clatsop | C44: 73 | D44: Gearhart | G44: 46 | H44: 1 | I44: 43.28 | J44: -123 | K44: 54 | L44: 28.71 | M44: 46.02868889 | N44: -123.907975
A45: 04 | B45: Clatsop | C45: 189 | D45: Seaside | G45: 45 | H45: 58 | I45: 9.74 | J45: -123 | K45: 55 | L45: 54.67 | M45: 45.96937222 | N45: -123.9318528
A46: 04 | B46: Clatsop | C46: 226 | D46: Warrenton | G46: 46 | H46: 10 | I46: 27.38 | J46: -123 | K46: 54 | L46: 55.93 | M46: 46.17427222 | N46: -123.9155361
A47: 04 | B47: Clatsop | E47: 5 | F47: ASTORIA UA | G47: 46 | H47: 12 | I47: 33.26 | J47: -123 | K47: 46 | L47: 15.14 | M47: 46.20923889 | N47: -123.7708722
A48: 04 | B48: Clatsop | E48: 69 | F48: SEASIDE UA | G48: 46 | H48: 0 | I48: 18.59 | J48: -123 | K48: 54 | L48: 37.1 | M48: 46.00516389 | N48: -123.9103056
A49: 04 | B49: Clatsop | G49: 46 | H49: 1 | I49: 23.1 | J49: -123 | K49: 45 | L49: 1.91 | M49: 46.02308333 | N49: -123.7505306
A50: 05 | B50: Columbia | C50: 35 | D50: Clatskanie | G50: 46 | H50: 6 | I50: 12.48 | J50: -123 | K50: 12 | L50: 1.86 | M50: 46.10346667 | N50: -123.2005167
A51: 05 | B51: Columbia | C51: 37 | D51: Columbia City | G51: 45 | H51: 53 | I51: 44.38 | J51: -122 | K51: 48 | L51: 33.36 | M51: 45.89566111 | N51: -122.8092667
A52: 05 | B52: Columbia | C52: 170 | D52: Prescott | G52: 46 | H52: 2 | I52: 53.83 | J52: -122 | K52: 53 | L52: 22.17 | M52: 46.04828611 | N52: -122.8894917
A53: 05 | B53: Columbia | C53: 172 | D53: Rainier | G53: 46 | H53: 5 | I53: 11.29 | J53: -122 | K53: 57 | L53: 4.67 | M53: 46.08646944 | N53: -122.9512972
A54: 05 | B54: Columbia | C54: 186 | D54: Scappoose | G54: 45 | H54: 45 | I54: 12.07 | J54: -122 | K54: 52 | L54: 43.98 | M54: 45.75335278 | N54: -122.8788833
A55: 05 | B55: Columbia | C55: 182 | D55: St. Helens | G55: 45 | H55: 50 | I55: 22.82 | J55: -122 | K55: 49 | L55: 11.6 | M55: 45.83967222 | N55: -122.8198889
A56: 05 | B56: Columbia | C56: 223 | D56: Vernonia | G56: 45 | H56: 51 | I56: 17.14 | J56: -123 | K56: 10 | L56: 53.07 | M56: 45.85476111 | N56: -123.1814083
A57: 05 | B57: Columbia | E57: 61 | F57: RAINIER UA | G57: 46 | H57: 5 | I57: 13.78 | J57: -122 | K57: 58 | L57: 3.42 | M57: 46.08716111 | N57: -122.9676167
A58: 05 | B58: Columbia | E58: 73 | F58: ST HELEN UA | G58: 45 | H58: 50 | I58: 15.095 | J58: -122 | K58: 51 | L58: 8.662 | M58: 45.83752639 | N58: -122.8524061
A59: 05 | B59: Columbia | G59: 45 | H59: 59 | I59: 3.67 | J59: -123 | K59: 6 | L59: 22.04 | M59: 45.98435278 | N59: -123.1061222
A60: 06 | B60: Coos | C60: 14 | D60: Bandon | G60: 43 | H60: 6 | I60: 35.22 | J60: -124 | K60: 25 | L60: 41.28 | M60: 43.10978333 | N60: -124.4281333
A61: 06 | B61: Coos | C61: 39 | D61: Coos Bay | G61: 43 | H61: 22 | I61: 24.79 | J61: -124 | K61: 14 | L61: 21.65 | M61: 43.37355278 | N61: -124.2393472
A62: 06 | B62: Coos | C62: 40 | D62: Coquille | G62: 43 | H62: 10 | I62: 49.93 | J62: -124 | K62: 10 | L62: 48.065 | M62: 43.18053611 | N62: -124.1800181
A63: 06 | B63: Coos | C63: 116 | D63: Lakeside | G63: 43 | H63: 34 | I63: 59.6 | J63: -124 | K63: 10 | L63: 55.26 | M63: 43.58322222 | N63: -124.1820167
A64: 06 | B64: Coos | C64: 149 | D64: Myrtle Point | G64: 43 | H64: 3 | I64: 43.73 | J64: -124 | K64: 8 | L64: 3.97 | M64: 43.06214722 | N64: -124.1344361
A65: 06 | B65: Coos | C65: 153 | D65: North Bend | G65: 43 | H65: 24 | I65: 39.16 | J65: -124 | K65: 14 | L65: 1.49 | M65: =G65+(H65/60)+(I65/3600) -> 43.41087778 | N65: =J65-((K65/60)+(L65/3600)) -> -124.2337472
A66: 06 | B66: Coos | C66: 168 | D66: Powers | G66: 42 | H66: 53 | I66: 4.81 | J66: -124 | K66: 4 | L66: 15.05 | M66: 42.88466944 | N66: -124.0708472
A67: 06 | B67: Coos | E67: 17 | F67: COOS BAY UA | G67: 43 | H67: 20 | I67: 38.74 | J67: -124 | K67: 12 | L67: 42.479 | M67: 43.344095 | N67: -124.2118
A68: 06 | B68: Coos | G68: 43 | H68: 8 | I68: 41.21 | J68: -124 | K68: 7 | L68: 56.72 | M68: 43.14478056 | N68: -124.1324222
A69: 07 | B69: Crook | C69: 171 | D69: Prineville | G69: 44 | H69: 17 | I69: 42.01 | J69: -120 | K69: 51 | L69: 54.48 | M69: 44.29500278 | N69: -120.8651333
A70: 07 | B70: Crook | E70: 59 | F70: PRINEVL UA | G70: 44 | H70: 18 | I70: 56.01 | J70: -120 | K70: 51 | L70: 10.85 | M70: 44.31555833 | N70: -120.8530139
A71: 07 | B71: Crook | G71: 44 | H71: 9 | I71: 15.7 | J71: -120 | K71: 22 | L71: 52.11 | M71: 44.15436111 | N71: -120.3811417
A72: 08 | B72: Curry | C72: 22 | D72: Brookings | G72: 42 | H72: 4 | I72: 34.1 | J72: -124 | K72: 19 | L72: 7.53 | M72: 42.07613889 | N72: -124.3187583
A73: 08 | B73: Curry | C73: 77 | D73: Gold Beach | G73: 42 | H73: 22 | I73: 38.5 | J73: -124 | K73: 24 | L73: 42.94 | M73: 42.37736111 | N73: -124.4119278
A74: 08 | B74: Curry | C74: 167 | D74: Port Orford | G74: 42 | H74: 44 | I74: 53.317 | J74: -124 | K74: 29 | L74: 19.6 | M74: 42.74814361 | N74: -124.4887778
A75: 08 | B75: Curry | E75: 11 | F75: BROOKINGS UA | G75: 42 | H75: 4 | I75: 30.794 | J75: -124 | K75: 18 | L75: 9.998 | M75: 42.07522056 | N75: -124.3027772
A76: 08 | B76: Curry | G76: 42 | H76: 27 | I76: 28.74 | J76: -124 | K76: 11 | L76: 26.59 | M76: 42.45798333 | N76: -124.1907194
A77: 09 | B77: Deschutes | C77: 19 | D77: Bend | G77: 44 | H77: 3 | I77: 3.58 | J77: -121 | K77: 18 | L77: 51.32 | M77: 44.05099444 | N77: -121.3142556
A78: 09 | B78: Deschutes | C78: 252 | D78: La Pine | G78: 43 | H78: 40 | I78: 42.626 | J78: -121 | K78: 29 | L78: 22.564 | M78: 43.67850722 | N78: -121.4896011
A79: 09 | B79: Deschutes | C79: 173 | D79: Redmond | G79: 44 | H79: 15 | I79: 55.53 | J79: -121 | K79: 10 | L79: 23.72 | M79: 44.265425 | N79: -121.1732556
A80: 09 | B80: Deschutes | C80: 197 | D80: Sisters | G80: 44 | H80: 17 | I80: 34.02 | J80: -121 | K80: 33 | L80: 19.82 | M80: 44.29278333 | N80: -121.5555056
A81: 09 | B81: Deschutes | E81: 9 | F81: BEND UA | G81: 44 | H81: 2 | I81: 57.11 | J81: -121 | K81: 15 | L81: 8.08 | M81: 44.04919722 | N81: -121.2522444
A82: 09 | B82: Deschutes | E82: 63 | F82: REDMOND UA | G82: 44 | H82: 14 | I82: 19.51 | J82: -121 | K82: 13 | L82: 36.39 | M82: 44.23875278 | N82: -121.226775
A83: 09 | B83: Deschutes | G83: 43 | H83: 47 | I83: 15.97 | J83: -120 | K83: 57 | L83: 2.61 | M83: 43.78776944 | N83: -120.950725
A84: 10 | B84: Douglas | C84: 29 | D84: Canyonville | G84: 42 | H84: 55 | I84: 45.84 | J84: -123 | K84: 16 | L84: 41.86 | M84: 42.9294 | N84: -123.2782944
A85: 10 | B85: Douglas | C85: 53 | D85: Drain | G85: 43 | H85: 39 | I85: 49.14 | J85: -123 | K85: 18 | L85: 47.84 | M85: 43.66365 | N85: -123.3132889
A86: 10 | B86: Douglas | C86: 61 | D86: Elkton | G86: 43 | H86: 38 | I86: 6.72 | J86: -123 | K86: 34 | L86: 9.18 | M86: 43.6352 | N86: -123.5692167
A87: 10 | B87: Douglas | C87: 76 | D87: Glendale | G87: 42 | H87: 44 | I87: 34.434 | J87: -123 | K87: 25 | L87: 59.007 | M87: 42.74289833 | N87: -123.4330575
A88: 10 | B88: Douglas | C88: 148 | D88: Myrtle Creek | G88: 43 | H88: 1 | I88: 10.78 | J88: -123 | K88: 16 | L88: 37.94 | M88: 43.01966111 | N88: -123.2772056
A89: 10 | B89: Douglas | C89: 157 | D89: Oakland | G89: 43 | H89: 25 | I89: 20.36 | J89: -123 | K89: 17 | L89: 34.05 | M89: 43.42232222 | N89: -123.2927917
A90: 10 | B90: Douglas | C90: 174 | D90: Reedsport | G90: 43 | H90: 41 | I90: 45.44 | J90: -124 | K90: 6 | L90: 53.74 | M90: 43.69595556 | N90: -124.1149278
A91: 10 | B91: Douglas | C91: 176 | D91: Riddle | G91: 42 | H91: 57 | I91: 15.4 | J91: -123 | K91: 21 | L91: 48.91 | M91: 42.95427778 | N91: -123.3635861
A92: 10 | B92: Douglas | C92: 180 | D92: Roseburg | G92: 43 | H92: 13 | I92: 16.23 | J92: -123 | K92: 21 | L92: 43.19 | M92: 43.221175 | N92: -123.3619972
A93: 10 | B93: Douglas | C93: 206 | D93: Sutherlin | G93: 43 | H93: 22 | I93: 51.1 | J93: -123 | K93: 19 | L93: 45.54 | M93: 43.38086111 | N93: -123.3293167
A94: 10 | B94: Douglas | C94: 235 | D94: Winston | G94: 43 | H94: 7 | I94: 5.95 | J94: -123 | K94: 25 | L94: 23.06 | M94: 43.11831944 | N94: -123.4230722
A95: 10 | B95: Douglas | C95: 240 | D95: Yoncalla | G95: 43 | H95: 36 | I95: 5.59 | J95: -123 | K95: 17 | L95: 15.79 | M95: 43.60155278 | N95: -123.2877194
A96: 10 | B96: Douglas | E96: 48 | F96: MYRTLE CRK UA | G96: 42 | H96: 58 | I96: 19.75 | J96: -123 | K96: 21 | L96: 18.83 | M96: =G96+(H96/60)+(I96/3600) -> 42.97215278 | N96: =J96-((K96/60)+(L96/3600)) -> -123.3552306
A97: 10 | B97: Douglas | E97: 65 | F97: ROSEBURG UA | G97: 43 | H97: 14 | I97: 46.42 | J97: -123 | K97: 18 | L97: 47.9 | M97: 43.24622778 | N97: -123.3133056
A98: 10 | B98: Douglas | E98: 77 | F98: SUTHRLIN UA | G98: 43 | H98: 24 | I98: 15.14 | J98: -123 | K98: 19 | L98: 9.21 | M98: 43.40420556 | N98: -123.319225
A99: 10 | B99: Douglas | G99: 43 | H99: 10 | I99: 41.28 | J99: -123 | K99: 7 | L99: 4.82 | M99: 43.17813333 | N99: -123.1180056
A100: 11 | B100: Gilliam | C100: 7 | D100: Arlington | G100: 45 | H100: 43 | I100: 19.04 | J100: -120 | K100: 11 | L100: 28.86 | M100: 45.72195556 | N100: -120.19135
A101: 11 | B101: Gilliam | C101: 38 | D101: Condon | G101: 45 | H101: 14 | I101: 27.84 | J101: -120 | K101: 11 | L101: 32.12 | M101: 45.24106667 | N101: -120.1922556
A102: 11 | B102: Gilliam | C102: 121 | D102: Lonerock | G102: 45 | H102: 5 | I102: 32.07 | J102: -119 | K102: 52 | L102: 48.05 | M102: 45.09224167 | N102: -119.8800139
A103: 11 | B103: Gilliam | G103: 45 | H103: 17 | I103: 12.27 | J103: -120 | K103: 10 | L103: 10.45 | M103: 45.28674167 | N103: -120.1695694
A104: 12 | B104: Grant | C104: 28 | D104: Canyon City | G104: 44 | H104: 23 | I104: 33.07 | J104: -118 | K104: 56 | L104: 51.95 | M104: 44.39251944 | N104: -118.9477639
A105: 12 | B105: Grant | C105: 49 | D105: Dayville | G105: 44 | H105: 28 | I105: 4.98 | J105: -119 | K105: 31 | L105: 54.71 | M105: 44.46805 | N105: -119.5318639
A106: 12 | B106: Grant | C106: 79 | D106: Granite | G106: 44 | H106: 48 | I106: 42.5 | J106: -118 | K106: 24 | L106: 55.814 | M106: 44.81180556 | N106: -118.4155039
A107: 12 | B107: Grant | C107: 105 | D107: John Day | G107: 44 | H107: 25 | I107: 27.49 | J107: -118 | K107: 57 | L107: 0.95 | M107: 44.42430278 | N107: -118.9502639
A108: 12 | B108: Grant | C108: 122 | D108: Long Creek | G108: 44 | H108: 42 | I108: 55.83 | J108: -119 | K108: 5 | L108: 57.14 | M108: 44.71550833 | N108: -119.0992056
A109: 12 | B109: Grant | C109: 143 | D109: Monument | G109: 44 | H109: 49 | I109: 17.25 | J109: -119 | K109: 25 | L109: 11.46 | M109: 44.82145833 | N109: -119.41985
A110: 12 | B110: Grant | C110: 147 | D110: Mt. Vernon | G110: 44 | H110: 24 | I110: 55.93 | J110: -119 | K110: 6 | L110: 54.51 | M110: 44.41553611 | N110: -119.1151417
A111: 12 | B111: Grant | C111: 169 | D111: Prairie City | G111: 44 | H111: 27 | I111: 37.23 | J111: -118 | K111: 42 | L111: 26.21 | M111: 44.46034167 | N111: -118.7072806
A112: 12 | B112: Grant | C112: 190 | D112: Seneca | G112: 44 | H112: 8 | I112: 5.35 | J112: -118 | K112: 58 | L112: 33.2 | M112: 44.13481944 | N112: -118.9758889
A113: 12 | B113: Grant | G113: 44 | H113: 28 | I113: 44.53 | J113: -118 | K113: 56 | L113: 42.56 | M113: 44.47903611 | N113: -118.9451556
A114: 13 | B114: Harney | C114: 24 | D114: Burns | G114: 43 | H114: 35 | I114: 21.64 | J114: -119 | K114: 3 | L114: 46.44 | M114: 43.58934444 | N114: -119.0629
A115: 13 | B115: Harney | C115: 93 | D115: Hines | G115: 43 | H115: 33 | I115: 26.78 | J115: -119 | K115: 4 | L115: 57.16 | M115: 43.55743889 | N115: -119.0825444
A116: 13 | B116: Harney | G116: 43 | H116: 0 | I116: 35.37 | J116: -118 | K116: 55 | L116: 8.71 | M116: 43.009825 | N116: -118.9190861
A117: 14 | B117: Hood River | C117: 31 | D117: Cascade Locks | G117: 45 | H117: 40 | I117: 22.01 | J117: -121 | K117: 52 | L117: 16.83 | M117: 45.67278056 | N117: -121.8713417
A118: 14 | B118: Hood River | C118: 94 | D118: Hood River | G118: 45 | H118: 42 | I118: 42.95 | J118: -121 | K118: 31 | L118: 51.24 | M118: 45.71193056 | N118: -121.5309
A119: 14 | B119: Hood River | E119: 34 | F119: HOOD RIVER UA | G119: 45 | H119: 42 | I119: 2.99 | J119: -121.32 | K119: 32 | L119: 23.09 | M119: 45.70083056 | N119: -121.539747
A120: 14 | B120: Hood River | G120: 45 | H120: 36 | I120: 0.01 | J120: -121 | K120: 41 | L120: 43.54 | M120: 45.60000278 | N120: -121.6954278
A121: 15 | B121: Jackson | C121: 8 | D121: Ashland | G121: 42 | H121: 11 | I121: 20.71 | J121: -122 | K121: 41 | L121: 27.11 | M121: 42.18908611 | N121: -122.6908639
A122: 15 | B122: Jackson | C122: 25 | D122: Butte Falls | G122: 42 | H122: 32 | I122: 25.69 | J122: -122 | K122: 34 | L122: 17.38 | M122: 42.54046944 | N122: -122.5714944
A123: 15 | B123: Jackson | C123: 33 | D123: Central Point | G123: 42 | H123: 22 | I123: 18.42 | J123: -122 | K123: 54 | L123: 42.72 | M123: 42.37178333 | N123: -122.9118667
A124: 15 | B124: Jackson | C124: 58 | D124: Eagle Point | G124: 42 | H124: 28 | I124: 35.94 | J124: -122 | K124: 48 | L124: 6.48 | M124: 42.47665 | N124: -122.8018
A125: 15 | B125: Jackson | C125: 78 | D125: Gold Hill | G125: 42 | H125: 26 | I125: 10.11 | J125: -123 | K125: 3 | L125: 12.17 | M125: 42.43614167 | N125: -123.0533806
A126: 15 | B126: Jackson | C126: 103 | D126: Jacksonville | G126: 42 | H126: 18 | I126: 52.48 | J126: -122 | K126: 58 | L126: 27.3 | M126: 42.31457778 | N126: -122.97425
A127: 15 | B127: Jackson | C127: 132 | D127: Medford | G127: 42 | H127: 20 | I127: 54.7 | J127: -122 | K127: 50 | L127: 56.67 | M127: 42.34852778 | N127: -122.849075
A128: 15 | B128: Jackson | C128: 164 | D128: Phoenix | G128: 42 | H128: 16 | I128: 34.73 | J128: -122 | K128: 48 | L128: 49.88 | M128: =G128+(H128/60)+(I128/3600) -> 42.27631389 | N128: =J128-((K128/60)+(L128/3600)) -> -122.8138556
A129: 15 | B129: Jackson | C129: 179 | D129: Rogue River | G129: 42 | H129: 26 | I129: 4.44 | J129: -123 | K129: 10 | L129: 9.65 | M129: 42.43456667 | N129: -123.1693472
A130: 15 | B130: Jackson | C130: 191 | D130: Shady Cove | G130: 42 | H130: 36 | I130: 42.95 | J130: -122 | K130: 49 | L130: 4.94 | M130: 42.61193056 | N130: -122.8180389
A131: 15 | B131: Jackson | C131: 208 | D131: Talent | G131: 42 | H131: 14 | I131: 21.36 | J131: -122 | K131: 46 | L131: 47.15 | M131: 42.23926667 | N131: -122.7797639
A132: 15 | B132: Jackson | E132: 44 | F132: MEDFORD UA | G132: 42 | H132: 19 | I132: 10.49 | J132: -122 | K132: 46 | L132: 53.71 | M132: =G132+(H132/60)+(I132/3600) -> 42.31958056 | N132: =J132-((K132/60)+(L132/3600)) -> -122.7815861
A133: 15 | B133: Jackson | E133: 31 | F133: GRANTS PASS UA | G133: 42 | H133: 25 | I133: 51.257 | J133: -123 | K133: 5 | L133: 48.92 | M133: 42.43090472 | N133: -123.0969222
A134: 15 | B134: Jackson | G134: 42 | H134: 25 | I134: 55.06 | J134: -122 | K134: 43 | L134: 8.15 | M134: 42.43196111 | N134: -122.7189306
A135: 16 | B135: Jefferson | C135: 46 | D135: Culver | G135: 44 | H135: 31 | I135: 26.16 | J135: -121 | K135: 12 | L135: 41.79 | M135: 44.52393333 | N135: -121.2116083
A136: 16 | B136: Jefferson | C136: 127 | D136: Madras | G136: 44 | H136: 37 | I136: 50.56 | J136: -121 | K136: 7 | L136: 12.48 | M136: 44.63071111 | N136: -121.1201333
A137: 16 | B137: Jefferson | C137: 134 | D137: Metolius | G137: 44 | H137: 35 | I137: 11.55 | J137: -121 | K137: 10 | L137: 54.34 | M137: 44.58654167 | N137: -121.1817611
A138: 16 | B138: Jefferson | E138: 42 | F138: MADRAS UA | G138: 44 | H138: 38 | I138: 18.95 | J138: -121 | K138: 8 | L138: 16.54 | M138: 44.63859722 | N138: -121.1379278
A139: 16 | B139: Jefferson | G139: 44 | H139: 37 | I139: 14.43 | J139: -121 | K139: 11 | L139: 10.92 | M139: 44.620675 | N139: -121.1863667
A140: 17 | B140: Josephine | C140: 32 | D140: Cave Junction | G140: 42 | H140: 10 | I140: 1.06 | J140: -123 | K140: 38 | L140: 52.84 | M140: 42.16696111 | N140: -123.6480111
A141: 17 | B141: Josephine | C141: 80 | D141: Grants Pass | G141: 42 | H141: 25 | I141: 39.12 | J141: -123 | K141: 20 | L141: 55.76 | M141: 42.42753333 | N141: -123.3488222
A142: 17 | B142: Josephine | E142: 31 | F142: GRNTS PS UA | G142: 42 | H142: 25 | I142: 29.57 | J142: -123 | K142: 23 | L142: 35.54 | M142: 42.42488056 | N142: -123.3932056
A143: 17 | B143: Josephine | G143: 42 | H143: 22 | I143: 11.98 | J143: -123 | K143: 37 | L143: 39.86 | M143: 42.36999444 | N143: -123.6277389
A144: 18 | B144: Klamath | C144: 21 | D144: Bonanza | G144: 42 | H144: 12 | I144: 6.35 | J144: -121 | K144: 24 | L144: 24.86 | M144: 42.20176389 | N144: -121.4069056
A145: 18 | B145: Klamath | C145: 34 | D145: Chiloquin | G145: 42 | H145: 34 | I145: 32.9 | J145: -121 | K145: 51 | L145: 58.91 | M145: 42.57580556 | N145: -121.8663639
A146: 18 | B146: Klamath | C146: 112 | D146: Klamath Falls | G146: 42 | H146: 13 | I146: 16.65 | J146: -121 | K146: 48 | L146: 20.98 | M146: 42.22129167 | N146: -121.8058278
A147: 18 | B147: Klamath | C147: 128 | D147: Malin | G147: 42 | H147: 0 | I147: 29.49 | J147: -121 | K147: 24 | L147: 46.01 | M147: 42.00819167 | N147: -121.4127806
A148: 18 | B148: Klamath | C148: 133 | D148: Merrill | G148: 42 | H148: 1 | I148: 22.68 | J148: -121 | K148: 36 | L148: 7.73 | M148: 42.02296667 | N148: -121.6021472
A149: 18 | B149: Klamath | E149: 35 | F149: KLAM FLS UA | G149: 42 | H149: 12 | I149: 19.77 | J149: -121 | K149: 45 | L149: 57.74 | M149: 42.20549167 | N149: -121.7660389
A150: 18 | B150: Klamath | G150: 42 | H150: 48 | I150: 37.2 | J150: -121 | K150: 37 | L150: 31.3 | M150: 42.81033333 | N150: -121.6253611
A151: 19 | B151: Lake | C151: 117 | D151: Lakeview | G151: 42 | H151: 12 | I151: 1.93 | J151: -120 | K151: 21 | L151: 46.69 | M151: 42.20053611 | N151: -120.3629694
A152: 19 | B152: Lake | C152: 161 | D152: Paisley | G152: 42 | H152: 41 | I152: 29.04 | J152: -120 | K152: 32 | L152: 57.5 | M152: 42.6914 | N152: -120.5493056
A153: 19 | B153: Lake | G153: 42 | H153: 48 | I153: 8.2 | J153: -120 | K153: 20 | L153: 51.66 | M153: 42.80227778 | N153: -120.3476833
A154: 20 | B154: Lane | C154: 36 | D154: Coburg | G154: 44 | H154: 8 | I154: 20.12 | J154: -123 | K154: 3 | L154: 33.47 | M154: 44.13892222 | N154: -123.0592972
A155: 20 | B155: Lane | C155: 43 | D155: Cottage Grove | G155: 43 | H155: 48 | I155: 14.575 | J155: -123 | K155: 4 | L155: 24.254 | M155: 43.80404861 | N155: -123.0734039
A156: 20 | B156: Lane | C156: 45 | D156: Creswell | G156: 43 | H156: 55 | I156: 0.41 | J156: -123 | K156: 0 | L156: 58.35 | M156: 43.91678056 | N156: -123.0162083
A157: 20 | B157: Lane | C157: 56 | D157: Dunes City | G157: 43 | H157: 54 | I157: 37.05 | J157: -124 | K157: 5 | L157: 31.55 | M157: 43.91029167 | N157: -124.0920972
A158: 20 | B158: Lane | C158: 64 | D158: Eugene | G158: 44 | H158: 2 | I158: 33.28 | J158: -123 | K158: 7 | L158: 18.78 | M158: 44.04257778 | N158: -123.1218833
A159: 20 | B159: Lane | C159: 67 | D159: Florence | G159: 43 | H159: 59 | I159: 20.38 | J159: -124 | K159: 6 | L159: 19.52 | M159: 43.98899444 | N159: -124.1054222
A160: 20 | B160: Lane | C160: 109 | D160: Junction City | G160: 44 | H160: 13 | I160: 3.49 | J160: -123 | K160: 12 | L160: 44.64 | M160: 44.21763611 | N160: -123.2124
A161: 20 | B161: Lane | C161: 124 | D161: Lowell | G161: 43 | H161: 55 | I161: 26.59 | J161: -122 | K161: 46 | L161: 24.01 | M161: 43.92405278 | N161: -122.7733361
A162: 20 | B162: Lane | C162: 158 | D162: Oakridge | G162: 43 | H162: 44 | I162: 39.29 | J162: -122 | K162: 27 | L162: 35.28 | M162: 43.74424722 | N162: -122.4598
A163: 20 | B163: Lane | C163: 200 | D163: Springfield | G163: 44 | H163: 3 | I163: 20.28 | J163: -122 | K163: 57 | L163: 20.18 | M163: 44.05563333 | N163: -122.9556056
A164: 20 | B164: Lane | C164: 222 | D164: Veneta | G164: 44 | H164: 2 | I164: 46.29 | J164: -123 | K164: 20 | L164: 54.58 | M164: 44.04619167 | N164: -123.3484944
A165: 20 | B165: Lane | C165: 229 | D165: Westfir | G165: 43 | H165: 45 | I165: 26.38 | J165: -122 | K165: 30 | L165: 28.8 | M165: 43.75732778 | N165: -122.508
A166: 20 | B166: Lane | E166: 21 | F166: COTGE GR UA | G166: 43 | H166: 47 | I166: 41.25 | J166: -123 | K166: 5 | L166: 2.72 | M166: 43.79479167 | N166: -123.0840889
A167: 20 | B167: Lane | E167: 22 | F167: CRESWELL UA | G167: 43 | H167: 55 | I167: 45.21 | J167: -123 | K167: 0 | L167: 8.18 | M167: 43.929225 | N167: -123.0022722
A168: 20 | B168: Lane | E168: 25 | F168: EUGN-SPR UA | G168: 44 | H168: 1 | I168: 55.36 | J168: -123 | K168: 0 | L168: 14.24 | M168: 44.03204444 | N168: -123.0039556
A169: 20 | B169: Lane | E169: 27 | F169: FLORENCE UA | G169: 44 | H169: 0 | I169: 58.83 | J169: -124 | K169: 6 | L169: 22.4 | M169: 44.01634167 | N169: -124.1062222
A170: 20 | B170: Lane | E170: 36 | F170: JUNCTN-CITY UA | G170: 44 | H170: 10 | I170: 36.94 | J170: -123 | K170: 11 | L170: 57.93 | M170: 44.17692778 | N170: -123.199425
A171: 20 | B171: Lane | E171: 82 | F171: VENETA UA | G171: 44 | H171: 3 | I171: 27.23 | J171: -123 | K171: 21 | L171: 25.12 | M171: 44.05756389 | N171: -123.3569778
A172: 20 | B172: Lane | G172: 43 | H172: 52 | I172: 14.16 | J172: -122 | K172: 59 | L172: 47.14 | M172: 43.8706 | N172: -122.9964278
A173: 21 | B173: Lincoln | C173: 50 | D173: Depoe Bay | G173: 44 | H173: 48 | I173: 26.91 | J173: -124 | K173: 3 | L173: 22.95 | M173: 44.807475 | N173: -124.056375
A174: 21 | B174: Lincoln | C174: 120 | D174: Lincoln City | G174: 44 | H174: 58 | I174: 40.14 | J174: -124 | K174: 0 | L174: 14.38 | M174: 44.97781667 | N174: -124.0039944
A175: 21 | B175: Lincoln | C175: 152 | D175: Newport | G175: 44 | H175: 37 | I175: 0.21 | J175: -124 | K175: 2 | L175: 20.18 | M175: 44.616725 | N175: -124.0389389
A176: 21 | B176: Lincoln | C176: 195 | D176: Siletz | G176: 44 | H176: 43 | I176: 36.35 | J176: -123 | K176: 55 | L176: 18.5 | M176: 44.72676389 | N176: -123.9218056
A177: 21 | B177: Lincoln | C177: 213 | D177: Toledo | G177: 44 | H177: 37 | I177: 11.45 | J177: -123 | K177: 56 | L177: 26.24 | M177: 44.61984722 | N177: -123.9406222
A178: 21 | B178: Lincoln | C178: 224 | D178: Waldport | G178: 44 | H178: 24 | I178: 58.52 | J178: -124 | K178: 3 | L178: 58.9 | M178: 44.41625556 | N178: -124.0663611
A179: 21 | B179: Lincoln | C179: 238 | D179: Yachats | G179: 44 | H179: 18 | I179: 53.12 | J179: -124 | K179: 6 | L179: 2.82 | M179: 44.31475556 | N179: -124.1007833
A180: 21 | B180: Lincoln | E180: 41 | F180: LINC CTY UA | G180: 44 | H180: 58 | I180: 4.89 | J180: -123 | K180: 59 | L180: 39.29 | M180: 44.968025 | N180: -123.9942472
A181: 21 | B181: Lincoln | E181: 51 | F181: NEWPORT UA | G181: 44 | H181: 36 | I181: 17.39 | J181: -124 | K181: 3 | L181: 8.86 | M181: 44.60483056 | N181: -124.0524611
A182: 21 | B182: Lincoln | G182: 44 | H182: 39 | I182: 56.54 | J182: -123 | K182: 52 | L182: 1.44 | M182: 44.66570556 | N182: -123.8670667
A183: 22 | B183: Linn | C183: 4 | D183: Albany | G183: 44 | H183: 37 | I183: 51.36 | J183: -123 | K183: 4 | L183: 48.53 | M183: 44.63093333 | N183: -123.0801472
A184: 22 | B184: Linn | C184: 23 | D184: Brownsville | G184: 44 | H184: 23 | I184: 31.48 | J184: -122 | K184: 59 | L184: 0.85 | M184: 44.39207778 | N184: -122.9835694
A185: 22 | B185: Linn | C185: 86 | D185: Halsey | G185: 44 | H185: 22 | I185: 49.43 | J185: -123 | K185: 6 | L185: 23.37 | M185: 44.38039722 | N185: -123.1064917
A186: 22 | B186: Linn | C186: 88 | D186: Harrisburg | G186: 44 | H186: 16 | I186: 23.57 | J186: -123 | K186: 9 | L186: 55 | M186: 44.27321389 | N186: -123.1652778
A187: 22 | B187: Linn | C187: 97 | D187: Idanha | G187: 44 | H187: 41 | I187: 46.37 | J187: -122 | K187: 4 | L187: 11.37 | M187: 44.69621389 | N187: -122.069825
A188: 22 | B188: Linn | C188: 118 | D188: Lebanon | G188: 44 | H188: 31 | I188: 40.19 | J188: -122 | K188: 54 | L188: 51.75 | M188: 44.52783056 | N188: -122.914375
A189: 22 | B189: Linn | C189: 125 | D189: Lyons | G189: 44 | H189: 46 | I189: 40.03 | J189: -122 | K189: 36 | L189: 35.74 | M189: 44.77778611 | N189: -122.6099278
A190: 22 | B190: Linn | C190: 135 | D190: Mill City | G190: 44 | H190: 45 | I190: 1.76 | J190: -122 | K190: 28 | L190: 49.91 | M190: 44.75048889 | N190: -122.4805306
A191: 22 | B191: Linn | C191: 136 | D191: Millersburg | G191: 44 | H191: 40 | I191: 39.41 | J191: -123 | K191: 4 | L191: 5.3 | M191: 44.67761389 | N191: -123.0681389
A192: 22 | B192: Linn | C192: 187 | D192: Scio | G192: 44 | H192: 42 | I192: 15.13 | J192: -122 | K192: 51 | L192: 5.77 | M192: 44.70420278 | N192: -122.8516028
A193: 22 | B193: Linn | C193: 198 | D193: Sodaville | G193: 44 | H193: 28 | I193: 54.32 | J193: -122 | K193: 52 | L193: 0.4 | M193: 44.48175556 | N193: -122.8667778
A194: 22 | B194: Linn | C194: 207 | D194: Sweet Home | G194: 44 | H194: 24 | I194: 14.19 | J194: -122 | K194: 42 | L194: 7.22 | M194: 44.40394167 | N194: -122.7020056
A195: 22 | B195: Linn | C195: 209 | D195: Tangent | G195: 44 | H195: 33 | I195: 2.76 | J195: -123 | K195: 6 | L195: 49.68 | M195: 44.55076667 | N195: -123.1138
A196: 22 | B196: Linn | C196: 228 | D196: Waterloo | G196: 44 | H196: 29 | I196: 45.26 | J196: -122 | K196: 49 | L196: 36.45 | M196: =G196+(H196/60)+(I196/3600) -> 44.49590556 | N196: =J196-((K196/60)+(L196/3600)) -> -122.8267917
A197: 22 | B197: Linn | E197: 1 | F197: ALBANY UA | G197: 44 | H197: 36 | I197: 14.18 | J197: -123 | K197: 4 | L197: 1.97 | M197: 44.60393889 | N197: -123.0672139
A198: 22 | B198: Linn | E198: 39 | F198: LEBANON UA | G198: 44 | H198: 30 | I198: 32.89 | J198: -122 | K198: 55 | L198: 25.17 | M198: 44.50913611 | N198: -122.9236583
A199: 22 | B199: Linn | E199: 79 | F199: SWEETHOM UA | G199: 44 | H199: 23 | I199: 49.8 | J199: -122 | K199: 45 | L199: 2.11 | M199: 44.39716667 | N199: -122.7505861
A200: 22 | B200: Linn | G200: 44 | H200: 30 | I200: 51.48 | J200: -122 | K200: 46 | L200: 51.1 | M200: 44.5143 | N200: -122.7808611
... 156 more rows
